Workbook

Sheet طلا با سود و اجرت
A1: شماره فاکتور | B1: کد طرف حساب | C1: تاریخ | D1: نوع | E1: الگو | F1: موضوع | G1: روش تسویه | H1: کد کالا | I1: تعداد | J1: مبلغ واحد | K1: مبلغ تخفیف | P1: اجرت ساخت | Q1: سود فروشنده | S1: عیار | AH1: پرداخت شده | AI1: اختلاف | AJ1: اجرت | AK1: سود | AL1: ارزش افزوده | AM1: تعداد با اعشار
A2: 100 | B2: 100 | C2: 1404-06-24 | D2: =IF(A2<>"",2,"") -> 2 | E2: =IF(A2<>"",3,"") -> 3 | F2: =IF(A2<>"",1,"") -> 1 | G2: =IF(A2<>"",1,"") -> 1 | H2: 100 | I2: =IF(IF((ROUNDDOWN(AM2,4)*10000)-ROUNDDOWN(AM2,3)*10000>5,ROUNDUP(AM2,3)+0.001,ROUNDUP(AM2,3))=0,"",IF((ROUNDDOWN(AM2,4)*10000)-ROUNDDOWN(AM2,3)*10000>5,ROUNDUP(AM2,3)+0.001,ROUNDUP(AM2,3))) -> 3.973 | J2: 66050000 | K2: =IF(AH2>0,IF(ROUNDDOWN(I2*J2,0)+ROUNDDOWN(ROUNDDOWN(I2*J2,0)*AJ2%,0)+ROUNDDOWN((ROUNDDOWN(I2*J2,0)+ROUNDDOWN(ROUNDDOWN(I2*J2,0)*AJ2%,0))*AK2%,0)+ROUNDDOWN((P2+Q2)*AL2%,0)-AH2>(I2*J2)*1%,0,IF(ROUNDDOWN(I2*J2,0)+ROUNDDOWN(ROUNDDOWN(I2*J2,0)*AJ2%,0)+ROUNDDOWN((ROUNDDOWN(I2*J2,0)+ROUNDDOWN(ROUNDDOWN(I2*J2,0)*AJ2%,0))*AK2%,0)+ROUNDDOWN((P2+Q2)*AL2%,0)-AH2<0,0,ROUNDDOWN(I2*J2,0)+ROUNDDOWN(ROUNDDOWN(I2*J2,0)*AJ2%,0)+ROUNDDOWN((ROUNDDOWN(I2*J2,0)+ROUNDDOWN(ROUNDDOWN(I2*J2,0)*AJ2%,0))*AK2%,0)+ROUNDDOWN((P2+Q2)*AL2%,0)-AH2)),"") -> 2148313 | P2: =IF(AH2>0,ROUNDDOWN(ROUNDDOWN(I2*J2,0)*AJ2%,0),"") -> 52483330 | Q2: =IF(AH2>0,ROUNDDOWN((ROUNDDOWN(I2*J2,0)+ROUNDDOWN(ROUNDDOWN(I2*J2,0)*AJ2%,0))*AK2%,0),"") -> 0 | S2: 750 | AH2: 318000000 | AI2: =IF(AH2>0,ROUNDDOWN(I2*J2,0)+ROUNDDOWN(ROUNDDOWN(I2*J2,0)*AJ2%,0)+ROUNDDOWN((ROUNDDOWN(I2*J2,0)+ROUNDDOWN(ROUNDDOWN(I2*J2,0)*AJ2%,0))*AK2%,0)+ROUNDDOWN((P2+Q2)*AL2%,0)-AH2-K2,"") -> 0 | AJ2: 20 | AK2: 0 | AL2: 10 | AM2: 3.972273925
A3: =IF(AH3>0,A2+1,"") -> 101 | B3: =IF(AH3>0,B2,"") -> 100 | C3: 1404-06-24 | D3: =IF(A3<>"",2,"") -> 2 | E3: =IF(A3<>"",3,"") -> 3 | F3: =IF(A3<>"",1,"") -> 1 | G3: =IF(A3<>"",1,"") -> 1 | H3: =IF(AH3>0,B2,"") -> 100 | I3: =IF(IF((ROUNDDOWN(AM3,4)*10000)-ROUNDDOWN(AM3,3)*10000>5,ROUNDUP(AM3,3)+0.001,ROUNDUP(AM3,3))=0,"",IF((ROUNDDOWN(AM3,4)*10000)-ROUNDDOWN(AM3,3)*10000>5,ROUNDUP(AM3,3)+0.001,ROUNDUP(AM3,3))) -> 5.038 | J3: 52850000 | K3: =IF(AH3>0,IF(ROUNDDOWN(I3*J3,0)+ROUNDDOWN(ROUNDDOWN(I3*J3,0)*AJ3%,0)+ROUNDDOWN((ROUNDDOWN(I3*J3,0)+ROUNDDOWN(ROUNDDOWN(I3*J3,0)*AJ3%,0))*AK3%,0)+ROUNDDOWN((P3+Q3)*AL3%,0)-AH3>(I3*J3)*1%,0,IF(ROUNDDOWN(I3*J3,0)+ROUNDDOWN(ROUNDDOWN(I3*J3,0)*AJ3%,0)+ROUNDDOWN((ROUNDDOWN(I3*J3,0)+ROUNDDOWN(ROUNDDOWN(I3*J3,0)*AJ3%,0))*AK3%,0)+ROUNDDOWN((P3+Q3)*AL3%,0)-AH3<0,0,ROUNDDOWN(I3*J3,0)+ROUNDDOWN(ROUNDDOWN(I3*J3,0)*AJ3%,0)+ROUNDDOWN((ROUNDDOWN(I3*J3,0)+ROUNDDOWN(ROUNDDOWN(I3*J3,0)*AJ3%,0))*AK3%,0)+ROUNDDOWN((P3+Q3)*AL3%,0)-AH3)),"") -> 98790 | P3: =IF(AH3>0,ROUNDDOWN(ROUNDDOWN(I3*J3,0)*AJ3%,0),"") -> 26625830 | Q3: =IF(AH3>0,ROUNDDOWN((ROUNDDOWN(I3*J3,0)+ROUNDDOWN(ROUNDDOWN(I3*J3,0)*AJ3%,0))*AK3%,0),"") -> 20501889 | S3: =IF(AH3>0,S2,"") -> 750 | AH3: 318000000 | AI3: =IF(AH3>0,ROUNDDOWN(I3*J3,0)+ROUNDDOWN(ROUNDDOWN(I3*J3,0)*AJ3%,0)+ROUNDDOWN((ROUNDDOWN(I3*J3,0)+ROUNDDOWN(ROUNDDOWN(I3*J3,0)*AJ3%,0))*AK3%,0)+ROUNDDOWN((P3+Q3)*AL3%,0)-AH3-K3,"") -> 0 | AJ3: 10 | AK3: 7 | AL3: 10 | AM3: 5.036552717
A4: =IF(AH4>0,A3+1,"") -> 102 | B4: =IF(AH4>0,B3,"") -> 100 | C4: 1404-06-24 | D4: 2 | E4: 3 | F4: 1 | G4: 1 | H4: =IF(AH4>0,B3,"") -> 100 | I4: 4.985 | J4: 52370000 | K4: 39154 | P4: 31327734 | Q4: 20467452 | S4: =IF(AH4>0,S3,"") -> 750 | AH4: 318000000 | AI4: 0 | AJ4: 12 | AK4: 7 | AL4: 10 | AM4: 4.9838799
A5: 103 | B5: 100 | C5: 1404-06-24 | D5: 2 | E5: 3 | F5: 1 | G5: 1 | H5: 100 | I5: 4.608 | J5: 53550000 | K5: 37030 | P5: 44416512 | Q5: 20382243 | S5: 750 | AH5: 318000000 | AI5: 0 | AJ5: 18 | AK5: 7 | AL5: 10 | AM5: 4.606600251
A6: 104 | B6: 100 | C6: 1404-06-24 | D6: 2 | E6: 3 | F6: 1 | G6: 1 | H6: 100 | I6: 5.039 | J6: 52310000 | K6: 13533 | P6: 28994909 | Q6: 20480949 | S6: 750 | AH6: 318000000 | AI6: 0 | AJ6: 11 | AK6: 7 | AL6: 10 | AM6: 5.038149657
A7: 105 | B7: 100 | C7: 1404-06-24 | D7: 2 | E7: 3 | F7: 1 | G7: 1 | H7: 100 | I7: 5.089 | J7: 52310000 | K7: 35817 | P7: 26620559 | Q7: 20497830 | S7: 750 | AH7: 318000000 | AI7: 0 | AJ7: 10 | AK7: 7 | AL7: 10 | AM7: 5.087854609
A8: 106 | B8: 100 | C8: 1404-06-24 | D8: 2 | E8: 3 | F8: 1 | G8: 1 | H8: 100 | I8: 5.118 | J8: 52530000 | K8: 29002 | P8: 24196368 | Q8: 20513143 | S8: 750 | AH8: 318000000 | AI8: 0 | AJ8: 9 | AK8: 7 | AL8: 10 | AM8: 5.117036938
A9: 107 | B9: 100 | C9: 1404-06-24 | D9: 2 | E9: 3 | F9: 1 | G9: 1 | H9: 100 | I9: 4.648 | J9: 56170000 | K9: 55856 | P9: 31329379 | Q9: 20468527 | S9: 750 | AH9: 318000000 | AI9: 0 | AJ9: 12 | AK9: 7 | AL9: 10 | AM9: 4.646885108
A10: 108 | B10: 100 | C10: 1404-06-24 | D10: 2 | E10: 3 | F10: 1 | G10: 1 | H10: 100 | I10: 4.806 | J10: 55940000 | K10: 27937 | P10: 24196287 | Q10: 20513074 | S10: 750 | AH10: 318000000 | AI10: 0 | AJ10: 9 | AK10: 7 | AL10: 10 | AM10: 4.804645757
D67: =IF(A67<>"",2,"") ->  | E67: =IF(A67<>"",3,"") ->  | F67: =IF(A67<>"",1,"") ->  | G67: =IF(A67<>"",1,"") ->  | I67: =IF(IF((ROUNDDOWN(AM67,4)*10000)-ROUNDDOWN(AM67,3)*10000>5,ROUNDUP(AM67,3)+0.001,ROUNDUP(AM67,3))=0,"",IF((ROUNDDOWN(AM67,4)*10000)-ROUNDDOWN(AM67,3)*10000>5,ROUNDUP(AM67,3)+0.001,ROUNDUP(AM67,3))) ->  | K67: =IF(AH67>0,IF(ROUNDDOWN(I67*J67,0)+ROUNDDOWN(ROUNDDOWN(I67*J67,0)*AJ67%,0)+ROUNDDOWN((ROUNDDOWN(I67*J67,0)+ROUNDDOWN(ROUNDDOWN(I67*J67,0)*AJ67%,0))*AK67%,0)+ROUNDDOWN((P67+Q67)*AL67%,0)-AH67>(I67*J67)*1%,0,IF(ROUNDDOWN(I67*J67,0)+ROUNDDOWN(ROUNDDOWN(I67*J67,0)*AJ67%,0)+ROUNDDOWN((ROUNDDOWN(I67*J67,0)+ROUNDDOWN(ROUNDDOWN(I67*J67,0)*AJ67%,0))*AK67%,0)+ROUNDDOWN((P67+Q67)*AL67%,0)-AH67<0,0,ROUNDDOWN(I67*J67,0)+ROUNDDOWN(ROUNDDOWN(I67*J67,0)*AJ67%,0)+ROUNDDOWN((ROUNDDOWN(I67*J67,0)+ROUNDDOWN(ROUNDDOWN(I67*J67,0)*AJ67%,0))*AK67%,0)+ROUNDDOWN((P67+Q67)*AL67%,0)-AH67)),"") ->  | P67: =IF(AH67>0,ROUNDDOWN(ROUNDDOWN(I67*J67,0)*AJ67%,0),"") ->  | Q67: =IF(AH67>0,ROUNDDOWN((ROUNDDOWN(I67*J67,0)+ROUNDDOWN(ROUNDDOWN(I67*J67,0)*AJ67%,0))*AK67%,0),"") ->  | AI67: =IF(AH67>0,ROUNDDOWN(I67*J67,0)+ROUNDDOWN(ROUNDDOWN(I67*J67,0)*AJ67%,0)+ROUNDDOWN((ROUNDDOWN(I67*J67,0)+ROUNDDOWN(ROUNDDOWN(I67*J67,0)*AJ67%,0))*AK67%,0)+ROUNDDOWN((P67+Q67)*AL67%,0)-AH67-K67,"") -> 
A68: =IF(AH68>0,A67+1,"") ->  | B68: =IF(AH68>0,B67,"") ->  | H68: =IF(AH68>0,B67,"") ->  | S68: =IF(AH68>0,S67,"") -> 
D131: =IF(A131<>"",2,"") ->  | E131: =IF(A131<>"",3,"") ->  | F131: =IF(A131<>"",1,"") ->  | G131: =IF(A131<>"",1,"") ->  | I131: =IF(IF((ROUNDDOWN(AM131,4)*10000)-ROUNDDOWN(AM131,3)*10000>5,ROUNDUP(AM131,3)+0.001,ROUNDUP(AM131,3))=0,"",IF((ROUNDDOWN(AM131,4)*10000)-ROUNDDOWN(AM131,3)*10000>5,ROUNDUP(AM131,3)+0.001,ROUNDUP(AM131,3))) ->  | K131: =IF(AH131>0,IF(ROUNDDOWN(I131*J131,0)+ROUNDDOWN(ROUNDDOWN(I131*J131,0)*AJ131%,0)+ROUNDDOWN((ROUNDDOWN(I131*J131,0)+ROUNDDOWN(ROUNDDOWN(I131*J131,0)*AJ131%,0))*AK131%,0)+ROUNDDOWN((P131+Q131)*AL131%,0)-AH131>(I131*J131)*1%,0,IF(ROUNDDOWN(I131*J131,0)+ROUNDDOWN(ROUNDDOWN(I131*J131,0)*AJ131%,0)+ROUNDDOWN((ROUNDDOWN(I131*J131,0)+ROUNDDOWN(ROUNDDOWN(I131*J131,0)*AJ131%,0))*AK131%,0)+ROUNDDOWN((P131+Q131)*AL131%,0)-AH131<0,0,ROUNDDOWN(I131*J131,0)+ROUNDDOWN(ROUNDDOWN(I131*J131,0)*AJ131%,0)+ROUNDDOWN((ROUNDDOWN(I131*J131,0)+ROUNDDOWN(ROUNDDOWN(I131*J131,0)*AJ131%,0))*AK131%,0)+ROUNDDOWN((P131+Q131)*AL131%,0)-AH131)),"") ->  | P131: =IF(AH131>0,ROUNDDOWN(ROUNDDOWN(I131*J131,0)*AJ131%,0),"") ->  | Q131: =IF(AH131>0,ROUNDDOWN((ROUNDDOWN(I131*J131,0)+ROUNDDOWN(ROUNDDOWN(I131*J131,0)*AJ131%,0))*AK131%,0),"") ->  | AI131: =IF(AH131>0,ROUNDDOWN(I131*J131,0)+ROUNDDOWN(ROUNDDOWN(I131*J131,0)*AJ131%,0)+ROUNDDOWN((ROUNDDOWN(I131*J131,0)+ROUNDDOWN(ROUNDDOWN(I131*J131,0)*AJ131%,0))*AK131%,0)+ROUNDDOWN((P131+Q131)*AL131%,0)-AH131-K131,"") -> 
A132: =IF(AH132>0,A131+1,"") ->  | B132: =IF(AH132>0,B131,"") ->  | H132: =IF(AH132>0,B131,"") ->  | S132: =IF(AH132>0,S131,"") -> 
D195: =IF(A195<>"",2,"") ->  | E195: =IF(A195<>"",3,"") ->  | F195: =IF(A195<>"",1,"") ->  | G195: =IF(A195<>"",1,"") ->  | I195: =IF(IF((ROUNDDOWN(AM195,4)*10000)-ROUNDDOWN(AM195,3)*10000>5,ROUNDUP(AM195,3)+0.001,ROUNDUP(AM195,3))=0,"",IF((ROUNDDOWN(AM195,4)*10000)-ROUNDDOWN(AM195,3)*10000>5,ROUNDUP(AM195,3)+0.001,ROUNDUP(AM195,3))) ->  | K195: =IF(AH195>0,IF(ROUNDDOWN(I195*J195,0)+ROUNDDOWN(ROUNDDOWN(I195*J195,0)*AJ195%,0)+ROUNDDOWN((ROUNDDOWN(I195*J195,0)+ROUNDDOWN(ROUNDDOWN(I195*J195,0)*AJ195%,0))*AK195%,0)+ROUNDDOWN((P195+Q195)*AL195%,0)-AH195>(I195*J195)*1%,0,IF(ROUNDDOWN(I195*J195,0)+ROUNDDOWN(ROUNDDOWN(I195*J195,0)*AJ195%,0)+ROUNDDOWN((ROUNDDOWN(I195*J195,0)+ROUNDDOWN(ROUNDDOWN(I195*J195,0)*AJ195%,0))*AK195%,0)+ROUNDDOWN((P195+Q195)*AL195%,0)-AH195<0,0,ROUNDDOWN(I195*J195,0)+ROUNDDOWN(ROUNDDOWN(I195*J195,0)*AJ195%,0)+ROUNDDOWN((ROUNDDOWN(I195*J195,0)+ROUNDDOWN(ROUNDDOWN(I195*J195,0)*AJ195%,0))*AK195%,0)+ROUNDDOWN((P195+Q195)*AL195%,0)-AH195)),"") ->  | P195: =IF(AH195>0,ROUNDDOWN(ROUNDDOWN(I195*J195,0)*AJ195%,0),"") ->  | Q195: =IF(AH195>0,ROUNDDOWN((ROUNDDOWN(I195*J195,0)+ROUNDDOWN(ROUNDDOWN(I195*J195,0)*AJ195%,0))*AK195%,0),"") ->  | AI195: =IF(AH195>0,ROUNDDOWN(I195*J195,0)+ROUNDDOWN(ROUNDDOWN(I195*J195,0)*AJ195%,0)+ROUNDDOWN((ROUNDDOWN(I195*J195,0)+ROUNDDOWN(ROUNDDOWN(I195*J195,0)*AJ195%,0))*AK195%,0)+ROUNDDOWN((P195+Q195)*AL195%,0)-AH195-K195,"") -> 
A196: =IF(AH196>0,A195+1,"") ->  | B196: =IF(AH196>0,B195,"") ->  | H196: =IF(AH196>0,B195,"") ->  | S196: =IF(AH196>0,S195,"") -> 

Sheet طلای خام
A1: شماره فاکتور | B1: کد طرف حساب | C1: تاریخ | D1: نوع | E1: الگو | F1: موضوع | G1: روش تسویه | H1: کد کالا | I1: تعداد | J1: مبلغ واحد | K1: مبلغ تخفیف | S1: عیار | AH1: پرداخت شده
A2: 100 | B2: 100 | C2: 1404-06-24 | D2: =IF(A2<>"",2,"") -> 2 | E2: =IF(A2<>"",3,"") -> 3 | F2: =IF(A2<>"",1,"") -> 1 | G2: =IF(A2<>"",1,"") -> 1 | H2: 100 | I2: =IFERROR(IF(ROUNDUP(AH2/J2,2)=0,"",ROUNDUP(AH2/J2,2)),"") -> 4.82 | J2: 66050000 | K2: =IFERROR(IF(ROUNDDOWN(I2*J2,0)-AH2=0,"",ROUNDDOWN(I2*J2,0)-AH2),"") -> 361000 | S2: 750 | AH2: 318000000
A3: =IF(AH3>0,A2+1,"") -> 101 | B3: =IF(AH3>0,B2,"") -> 100 | C3: 1404-06-24 | D3: =IF(A3<>"",2,"") -> 2 | E3: =IF(A3<>"",3,"") -> 3 | F3: =IF(A3<>"",1,"") -> 1 | G3: =IF(A3<>"",1,"") -> 1 | H3: =IF(AH3>0,B2,"") -> 100 | I3: =IFERROR(IF(ROUNDUP(AH3/J3,2)=0,"",ROUNDUP(AH3/J3,2)),"") -> 6.02 | J3: 52850000 | K3: =IFERROR(IF(ROUNDDOWN(I3*J3,0)-AH3=0,"",ROUNDDOWN(I3*J3,0)-AH3),"") -> 157000 | S3: =IF(AH3>0,S2,"") -> 750 | AH3: 318000000
A4: =IF(AH4>0,A3+1,"") -> 102 | B4: =IF(AH4>0,B3,"") -> 100 | C4: 1404-06-24 | D4: 2 | E4: 3 | F4: 1 | G4: 1 | H4: =IF(AH4>0,B3,"") -> 100 | I4: 6.08 | J4: 52370000 | K4: 409600 | S4: =IF(AH4>0,S3,"") -> 750 | AH4: 318000000
A5: 103 | B5: 100 | C5: 1404-06-24 | D5: 2 | E5: 3 | F5: 1 | G5: 1 | H5: 100 | I5: 5.94 | J5: 53550000 | K5: 87000 | S5: 750 | AH5: 318000000
A6: 104 | B6: 100 | C6: 1404-06-24 | D6: 2 | E6: 3 | F6: 1 | G6: 1 | H6: 100 | I6: 6.08 | J6: 52310000 | K6: 44800 | S6: 750 | AH6: 318000000
A7: 105 | B7: 100 | C7: 1404-06-24 | D7: 2 | E7: 3 | F7: 1 | G7: 1 | H7: 100 | I7: 6.08 | J7: 52310000 | K7: 44800 | S7: 750 | AH7: 318000000
A8: 106 | B8: 100 | C8: 1404-06-24 | D8: 2 | E8: 3 | F8: 1 | G8: 1 | H8: 100 | I8: 6.06 | J8: 52530000 | K8: 331800 | S8: 750 | AH8: 318000000
A9: 107 | B9: 100 | C9: 1404-06-24 | D9: 2 | E9: 3 | F9: 1 | G9: 1 | H9: 100 | I9: 5.67 | J9: 56170000 | K9: 483900 | S9: 750 | AH9: 318000000
A10: 108 | B10: 100 | C10: 1404-06-24 | D10: 2 | E10: 3 | F10: 1 | G10: 1 | H10: 100 | I10: 5.69 | J10: 55940000 | K10: 298600 | S10: 750 | AH10: 318000000
D11: =IF(A11<>"",2,"") ->  | E11: =IF(A11<>"",3,"") ->  | F11: =IF(A11<>"",1,"") ->  | G11: =IF(A11<>"",1,"") -> 
K12: =IFERROR(IF(ROUNDDOWN(I12*J12,0)-AH12=0,"",ROUNDDOWN(I12*J12,0)-AH12),"") -> 
I67: =IFERROR(IF(ROUNDUP(AH67/J67,2)=0,"",ROUNDUP(AH67/J67,2)),"") -> 
A68: =IF(AH68>0,A67+1,"") ->  | B68: =IF(AH68>0,B67,"") ->  | H68: =IF(AH68>0,B67,"") ->  | S68: =IF(AH68>0,S67,"") -> 
D75: =IF(A75<>"",2,"") ->  | E75: =IF(A75<>"",3,"") ->  | F75: =IF(A75<>"",1,"") ->  | G75: =IF(A75<>"",1,"") -> 
K76: =IFERROR(IF(ROUNDDOWN(I76*J76,0)-AH76=0,"",ROUNDDOWN(I76*J76,0)-AH76),"") -> 
I131: =IFERROR(IF(ROUNDUP(AH131/J131,2)=0,"",ROUNDUP(AH131/J131,2)),"") -> 
A132: =IF(AH132>0,A131+1,"") ->  | B132: =IF(AH132>0,B131,"") ->  | H132: =IF(AH132>0,B131,"") ->  | S132: =IF(AH132>0,S131,"") -> 
D139: =IF(A139<>"",2,"") ->  | E139: =IF(A139<>"",3,"") ->  | F139: =IF(A139<>"",1,"") ->  | G139: =IF(A139<>"",1,"") -> 
K140: =IFERROR(IF(ROUNDDOWN(I140*J140,0)-AH140=0,"",ROUNDDOWN(I140*J140,0)-AH140),"") -> 
I195: =IFERROR(IF(ROUNDUP(AH195/J195,2)=0,"",ROUNDUP(AH195/J195,2)),"") -> 
A196: =IF(AH196>0,A195+1,"") ->  | B196: =IF(AH196>0,B195,"") ->  | H196: =IF(AH196>0,B195,"") ->  | S196: =IF(AH196>0,S195,"") -> 

Sheet فرمت به کارفرما
A1: شماره فاکتور | B1: کد طرف حساب | C1: ردیف | D1: تاریخ | E1: نام کالا | F1: وزن | G1: مظنه- قیمت روز هر گرم | H1: اجرت | I1: سود | J1: مبلغ دریافتی | K1: عیار
A2: 100 | B2: =IF(J2>0,100,"") ->  | C2: 1
A3: =IF(J3>0,A2+1,"") ->  | C3: 2
C4: 3
C5: 4
C6: 5
C7: 6
C8: 7
C9: 8
C10: 9
C11: 10
C12: 11
C13: 12
C14: 13
C15: 14
C16: 15
C17: 16
C18: 17
C19: 18
C20: 19
C21: 20

Sheet توضیحات
B2: موارد زرد رنگ تکمیل شود.
B3: در استونها فرمول وجود دارد به هیچ عنوان دستکاری نشود پس از تکمیل اطلاعات در شیت طلا با سود و اجرت و تکمیل موراد زرد رنگ دکمه ctrl+m را فشار دهید که به صورت اتوماتیک وزن، مبلغ تخفیف، اجرت ساخت، سود فروشنده را محاسبه خواهد نمود.
B4: در این قسمتها فرمول دارد اما اگر در صورت نیاز میتوانید خودتان تغییر دهید
B5: برای هر دو دو اکسل از الگوی " نرم افزار قدیمی - طلا و جواهر" میتوانید استفاده کنید.
